bitfinex/quotes_BTCUSD_20260101
["timestamp","ask_amount","ask_price","bid_price","bid_amount"]
[1767282192857,0.04992824,88091.0,88082.0,0.01159535]
[1767282193368,0.04992824,88091.0,88082.0,0.0002423]
[1767282193900,0.04992824,88091.0,88083.0,0.01135292]
[1767282194099,0.04992824,88091.0,88085.0,0.05676335]
[1767282194376,0.04937924,88091.0,88087.0,0.01135241]
[1767282194512,0.04937924,88091.0,88084.0,0.01135279]
[1767282194719,0.04937924,88091.0,88087.0,0.01135241]
[1767282195143,0.04937924,88091.0,88088.0,0.01135228]
[1767282195741,0.06077924,88091.0,88088.0,0.01135228]
[1767282196308,0.06077924,88091.0,88087.0,0.01135241]
[1767282196509,0.06077924,88091.0,88088.0,0.01135228]
[1767282196715,0.06077924,88091.0,88087.0,0.01135241]
[1767282196923,0.06077924,88091.0,88088.0,0.01135228]
[1767282201949,0.06077924,88091.0,88087.0,0.01135241]
[1767282202272,0.06077924,88091.0,88084.0,0.01135279]
[1767282202651,0.06077924,88091.0,88083.0,0.01135292]
[1767282202826,0.06077924,88091.0,88082.0,0.01159535]
[1767282203415,0.06077924,88091.0,88082.0,0.0115528]
[1767282203861,0.06077924,88091.0,88082.0,0.00019975]
[1767282204027,0.06077924,88091.0,88082.0,0.0115528]
[1767282204646,0.06077924,88091.0,88082.0,0.06831744]
[1767282205207,0.06077924,88091.0,88083.0,0.01135292]
[1767282205878,0.06077924,88091.0,88082.0,0.00019975]
[1767282206082,0.06077924,88091.0,88082.0,0.0115528]
[1767282206242,0.06077924,88091.0,88082.0,0.00019975]
[1767282206981,0.04972703,88081.0,88074.0,0.01175408]
[1767282207158,0.04980696,88081.0,88075.0,0.01135395]
[1767282207371,0.04980696,88081.0,88074.0,0.01175408]
[1767282207557,0.04980696,88081.0,88076.0,0.01135383]
[1767282207907,0.04980696,88081.0,88077.0,0.0113537]
[1767282208137,0.04980696,88081.0,88078.0,0.01135357]
[1767282208493,0.04980696,88081.0,88078.0,0.01131102]
[1767282209814,7.993e-05,88081.0,88079.0,0.05676722]
[1767282213047,7.993e-05,88081.0,88078.0,0.01131102]
[1767282215337,7.993e-05,88081.0,88078.0,0.0680786]
[1767282215726,0.00307066,88078.0,88077.0,0.0113537]
[1767282215931,0.05027603,88077.0,88074.0,0.01175408]
[1767282216118,0.05027603,88077.0,88074.0,0.06852434]
[1767282216119,0.04972703,88077.0,88074.0,0.06852434]
[1767282216319,0.04972703,88077.0,88074.0,0.01175408]
[1767282217430,0.04972703,88077.0,88073.0,0.0114]
[1767282217431,0.000149,88074.0,88073.0,0.0114]
[1767282217834,0.04972703,88077.0,88073.0,0.0114]
[1767282219292,0.04972703,88077.0,88074.0,0.01135408]
[1767282220391,0.04972703,88077.0,88073.0,0.0114]
[1767282220548,0.04987603,88074.0,88072.0,0.0002]
[1767282220946,0.04972703,88074.0,88072.0,0.0002]
[1767282221155,0.05279769,88073.0,88072.0,0.0002]
[1767282221339,0.05279769,88073.0,88070.0,0.0113546]
[1767282221595,0.00035,88070.0,88066.0,0.0114]
[1767282221752,0.05279769,88073.0,88066.0,0.02275512]
[1767282221954,0.05279769,88073.0,88068.0,0.01135486]
[1767282222176,0.05279769,88073.0,88066.0,0.02275512]
[1767282222177,0.05279769,88073.0,88067.0,0.01135499]
[1767282222708,0.05279769,88073.0,88066.0,0.02275512]
[1767282222869,0.05279769,88073.0,88067.0,0.01135499]
[1767282223903,0.05279769,88073.0,88066.0,0.0114]
[1767282224105,0.05279769,88073.0,88067.0,0.01135499]
[1767282224305,0.05279769,88073.0,88066.0,0.0114]
[1767282224518,0.05279769,88073.0,88064.0,0.01135537]
[1767282224720,0.00307066,88073.0,88064.0,0.01135537]
[1767282224873,0.04972703,88072.0,88066.0,0.01135512]
[1767282225071,0.04972703,88072.0,88067.0,0.01135499]
[1767282225597,0.04972703,88072.0,88066.0,0.01135512]
[1767282225798,0.04972703,88072.0,88067.0,0.01135499]
[1767282225975,0.04972703,88072.0,88066.0,0.01135512]
[1767282226224,0.00900628,88068.0,88066.0,0.01135512]
[1767282226376,0.00900628,88068.0,88065.0,0.01135524]
[1767282226576,0.01207694,88068.0,88065.0,0.01135524]
[1767282227212,0.01207694,88068.0,88063.0,0.0113555]
[1767282227399,0.06180397,88068.0,88064.0,0.01135537]
[1767282227593,0.06180397,88068.0,88062.0,0.00024074]
[1767282227784,0.06180397,88068.0,88062.0,0.01159637]
[1767282227979,0.06180397,88068.0,88062.0,0.00024074]
[1767282228350,0.06180397,88068.0,88065.0,0.01135524]
[1767282228497,0.06180397,88068.0,88064.0,0.01135537]
[1767282228898,0.000149,88064.0,88062.0,0.00024074]
[1767282229322,0.06180397,88068.0,88062.0,0.00024074]
[1767282229903,0.06180397,88068.0,88062.0,9.174e-05]
[1767282230107,0.06180397,88068.0,88062.0,0.01144737]
[1767282230306,0.06180397,88068.0,88062.0,9.174e-05]
[1767282230731,0.06180397,88068.0,88063.0,0.0113555]
[1767282230933,0.06180397,88068.0,88062.0,0.01144737]
[1767282231127,0.06180397,88068.0,88063.0,0.06813303]
[1767282231511,0.06180397,88068.0,88063.0,0.0113555]
[1767282232126,0.04972703,88068.0,88064.0,0.01135537]
[1767282232312,0.04972703,88068.0,88063.0,0.0113555]
[1767282232901,0.04972703,88068.0,88064.0,0.01135537]
[1767282233138,0.01207694,88067.0,88065.0,0.01135524]
[1767282233384,0.01207694,88067.0,88064.0,0.01135537]
[1767282233597,0.06039218,88067.0,88064.0,0.01135537]
[1767282234381,0.06039218,88067.0,88062.0,9.174e-05]
[1767282234558,0.06039218,88067.0,88064.0,0.06813163]
[1767282234747,0.01152794,88067.0,88064.0,0.06813163]
[1767282235758,0.04831524,88071.0,88066.0,0.0567756]
[1767282235983,0.04831524,88071.0,88067.0,0.01135499]
[1767282236151,0.04831524,88071.0,88068.0,0.01135486]
[1767282236632,0.04831524,88071.0,88067.0,0.01135499]
[1767282236828,0.04831524,88071.0,88068.0,0.01135486]
[1767282237079,0.000549,88068.0,88066.0,0.01135512]
[1767282237275,0.000549,88068.0,88067.0,0.05677495]
[1767282237476,0.000549,88068.0,88066.0,0.01135512]
[1767282237667,0.04831524,88072.0,88067.0,0.01135499]
[1767282238822,0.04831524,88072.0,88068.0,0.01135486]
[1767282239020,0.04831524,88072.0,88067.0,0.01135499]
[1767282239221,0.04831524,88072.0,88068.0,0.01135486]
[1767282240157,0.04831524,88072.0,88069.0,0.01135473]
[1767282240353,0.04831524,88072.0,88068.0,0.01135486]
[1767282240559,0.04831524,88072.0,88069.0,0.01135473]
[1767282241593,0.0114,88071.0,88069.0,0.01135473]
[1767282241738,0.01085,88071.0,88068.0,0.01135486]
[1767282241930,0.01085,88071.0,88067.0,0.01135499]
[1767282242141,0.01085,88071.0,88068.0,0.01135486]
[1767282243539,0.05916524,88071.0,88068.0,0.01135486]
[1767282243939,0.01085,88071.0,88068.0,0.01135486]
[1767282245010,0.05916524,88071.0,88068.0,0.01135486]
[1767282245417,0.05971524,88071.0,88067.0,0.01135499]
[1767282245623,0.04831524,88071.0,88068.0,0.01135486]
[1767282245821,0.05971524,88071.0,88068.0,0.06812879]
[1767282246139,0.04831524,88071.0,88070.0,0.05677302]
[1767282246439,0.05971524,88071.0,88070.0,0.05677302]
[1767282246639,0.0114,88071.0,88070.0,0.05677302]
[1767282247441,0.04831524,88076.0,88073.0,0.01135421]
[1767282247647,0.04831524,88074.0,88073.0,0.01080521]
[1767282247856,0.04831524,88074.0,88069.0,0.01135473]
[1767282248151,0.04831524,88074.0,88070.0,0.0113546]
[1767282248484,0.04831524,88074.0,88069.0,0.01135473]
[1767282248861,0.05971524,88073.0,88069.0,0.01135473]
[1767282249184,0.05971524,88073.0,88068.0,0.01135486]
[1767282249381,0.04831524,88073.0,88068.0,0.01135486]
[1767282249524,0.0002,88080.0,88073.0,0.05677088]
[1767282249730,0.0002,88080.0,88070.0,0.0113546]
[1767282249731,0.05971524,88079.0,88070.0,0.0113546]
[1767282250178,0.05971524,88079.0,88071.0,0.01135447]
[1767282250380,0.05971524,88079.0,88072.0,0.01135434]
[1767282250703,0.05971524,88079.0,88071.0,0.01135447]
[1767282251809,0.05971524,88079.0,88069.0,0.01135473]
[1767282252366,0.05971524,88079.0,88068.0,0.01135486]
[1767282252569,0.05971524,88079.0,88064.0,0.0681322]
[1767282252969,0.05971524,88079.0,88068.0,0.01135486]
[1767282253315,0.05971524,88079.0,88066.0,0.01135512]
[1767282253528,0.05971524,88079.0,88067.0,0.01135499]
[1767282253923,0.05971524,88079.0,88068.0,0.01135486]
[1767282254084,0.05971524,88079.0,88069.0,0.01135473]
[1767282254288,0.05971524,88079.0,88068.0,0.01135486]
[1767282254490,0.05971524,88079.0,88069.0,0.01135473]
[1767282255089,0.05971524,88079.0,88070.0,0.0113546]
[1767282255290,0.05971524,88079.0,88069.0,0.01135473]
[1767282256798,0.05971524,88079.0,88070.0,0.0113546]
[1767282257206,0.05971524,88079.0,88069.0,0.01135473]
[1767282257407,0.05971524,88079.0,88070.0,0.0113546]
[1767282258402,0.05971524,88079.0,88069.0,0.01135473]
[1767282258799,0.05971524,88079.0,88070.0,0.0113546]
[1767282258998,0.05971524,88079.0,88069.0,0.01135473]
[1767282259328,0.05971524,88079.0,88070.0,0.0113546]
[1767282259586,0.05971524,88079.0,88068.0,0.01135486]
[1767282259808,0.05971524,88079.0,88065.0,0.01135524]
[1767282260035,0.04831524,88077.0,88064.0,0.01135537]
[1767282260256,0.04831524,88077.0,88062.0,9.174e-05]
[1767282260470,0.04831524,88077.0,88062.0,0.01144737]
[1767282260910,0.04831524,88075.0,88063.0,0.0113555]
[1767282261132,0.04831524,88075.0,88062.0,0.01144737]
[1767282261340,0.04831524,88075.0,88063.0,0.0113555]
[1767282262107,0.04831524,88075.0,88065.0,0.01135524]
[1767282262487,0.04831524,88075.0,88063.0,0.0113555]
[1767282262696,0.04831524,88075.0,88064.0,0.01135537]
[1767282263502,0.04831524,88075.0,88062.0,0.01144737]
[1767282263924,0.04831524,88075.0,88063.0,0.0113555]
[1767282264123,0.04831524,88075.0,88064.0,0.01135537]
[1767282264469,0.04831524,88075.0,88063.0,0.0113555]
[1767282265045,0.0114,88079.0,88060.0,0.0002]
[1767282265046,0.04584289,88072.0,88060.0,0.0002]
[1767282265257,0.04584289,88070.0,88060.0,0.0002]
[1767282268958,0.04584289,88070.0,88060.0,0.0005245]
[1767282271510,0.0114,88071.0,88070.0,0.000549]
[1767282271908,0.05724289,88071.0,88070.0,0.000549]
[1767282272135,0.05724289,88071.0,88070.0,0.0001655]
[1767282273442,0.04584289,88071.0,88070.0,0.0001655]
[1767282273637,0.05724289,88071.0,88070.0,0.0001655]
[1767282274664,0.05724289,88071.0,88070.0,5e-07]
[1767282275082,0.04584289,88071.0,88070.0,5e-07]
[1767282275312,0.05724289,88071.0,88070.0,5e-07]
[1767282275632,0.04584289,88071.0,88070.0,5e-07]
[1767282275833,0.05724289,88071.0,88070.0,5e-07]
[1767282278798,0.0114,88071.0,88070.0,5e-07]
[1767282280291,0.05724289,88071.0,88070.0,5e-07]
[1767282283767,0.04584289,88071.0,88070.0,5e-07]
[1767282283975,0.05724289,88071.0,88070.0,5e-07]
[1767282286290,0.08178221,88071.0,88070.0,5e-07]
[1767282289278,0.07038221,88071.0,88070.0,5e-07]
[1767282289518,0.08178221,88071.0,88070.0,5e-07]
[1767282294079,0.09244205,88071.0,88070.0,5e-07]
[1767282294283,0.05869938,88069.0,88055.0,0.000159]
[1767282294481,0.04734465,88067.0,88055.0,0.000159]
[1767282294683,0.02453932,88066.0,88055.0,0.000159]
[1767282294986,0.02413932,88066.0,88055.0,0.000159]
[1767282298242,0.04734465,88065.0,88055.0,0.000159]
[1767282298442,0.0114,88064.0,88055.0,0.000159]
[1767282299355,0.0114,88064.0,88055.0,0.01151553]
[1767282299795,0.0114,88064.0,88055.0,0.000159]
[1767282300965,0.0114,88064.0,88055.0,0.01151553]
[1767282301322,0.0114,88064.0,88056.0,0.0113564]
[1767282301553,0.0114,88064.0,88058.0,0.01135615]
[1767282301736,0.0114,88064.0,88057.0,0.01135628]
[1767282301939,0.0114,88064.0,88056.0,0.0113564]
[1767282302140,0.0114,88064.0,88055.0,0.01151553]
[1767282302521,0.0114,88064.0,88055.0,0.000159]
[1767282303483,0.0114,88064.0,88055.0,0.01151553]
[1767282304548,0.0114,88064.0,88056.0,0.0113564]
[1767282304751,0.0114,88064.0,88055.0,0.01151553]
[1767282305279,0.0114,88064.0,88057.0,0.01135628]
[1767282305483,0.0114,88064.0,88056.0,0.0113564]
[1767282305896,0.0114,88064.0,88055.0,0.01151553]
[1767282306069,0.0114,88064.0,88056.0,0.06813841]
[1767282306274,0.0114,88064.0,88057.0,0.01135628]
[1767282306468,0.0114,88064.0,88058.0,0.05678075]
[1767282306687,0.05683344,88079.0,88061.0,0.01135576]
[1767282306688,0.0114,88065.0,88061.0,0.01135576]
[1767282306859,0.0114,88066.0,88063.0,0.04175587]
[1767282307066,0.0114,88066.0,88063.0,0.0113555]
[1767282307267,0.0114,88066.0,88061.0,0.01135576]
[1767282307461,0.0114,88066.0,88062.0,0.01135563]
[1767282307813,0.0114,88066.0,88060.0,0.01135589]
[1767282308513,0.0114,88066.0,88061.0,0.01135576]
[1767282308860,0.0114,88066.0,88060.0,0.01135589]
[1767282309095,0.0114,88066.0,88061.0,0.01135576]
[1767282310259,0.0114,88066.0,88060.0,0.01135589]
[1767282310416,0.0114,88066.0,88061.0,0.01135576]
[1767282310597,0.0114,88066.0,88060.0,0.01135589]
[1767282311780,0.0114,88066.0,88061.0,0.01135576]
[1767282311942,0.0114,88066.0,88062.0,0.01135563]
[1767282312275,0.0114,88066.0,88061.0,0.01135576]
[1767282312439,0.0114,88066.0,88062.0,0.01135563]
[1767282312760,0.0114,88066.0,88061.0,0.01135576]
[1767282313004,0.0114,88066.0,88062.0,0.01135563]
[1767282313275,0.0114,88066.0,88061.0,0.01135576]
[1767282313450,0.0114,88066.0,88062.0,0.01135563]
[1767282313657,0.0114,88066.0,88061.0,0.01135576]
[1767282313857,0.0114,88066.0,88062.0,0.01135563]
[1767282314739,0.0114,88066.0,88063.0,0.0113555]
[1767282314947,0.0114,88066.0,88061.0,0.01135576]
[1767282315554,0.0114,88066.0,88062.0,0.01135563]
[1767282316541,0.0114,88066.0,88063.0,0.0113555]
[1767282316844,0.0114,88066.0,88062.0,0.01135563]
[1767282317379,0.0114,88066.0,88062.0,0.00831537]
[1767282317644,0.00308463,88066.0,88062.0,0.01135563]
[1767282317862,0.00308463,88066.0,88061.0,0.01135576]
[1767282318073,0.00308463,88066.0,88062.0,0.01135563]
[1767282318216,0.00308463,88066.0,88061.0,0.01135576]
[1767282318987,0.00308463,88066.0,88062.0,0.01135563]
[1767282319597,0.00308463,88066.0,88063.0,0.0113555]
[1767282319803,0.00308463,88066.0,88062.0,0.01135563]
[1767282321038,0.04734465,88065.0,88060.0,0.01135589]
[1767282321222,0.000549,88062.0,88060.0,0.01135589]
[1767282321644,0.00308463,88066.0,88059.0,0.01135602]
[1767282322049,0.00308463,88066.0,88057.0,0.06813757]
[1767282322373,0.00308463,88066.0,88058.0,0.01135615]
[1767282323626,0.00308463,88066.0,88056.0,0.44345148]
[1767282323627,0.000549,88058.0,88055.0,0.01151553]
[1767282323830,0.04905331,88066.0,88056.0,0.0113564]
[1767282324553,0.04905331,88066.0,88057.0,0.01135628]
[1767282324757,0.04905331,88066.0,88056.0,0.0113564]
[1767282327527,0.04905331,88066.0,88055.0,0.000159]
[1767282327828,0.04905331,88066.0,88053.0,0.01135679]
[1767282327829,0.04905331,88066.0,88054.0,0.01135666]
[1767282328245,0.04905331,88066.0,88055.0,0.01135653]
[1767282328443,0.04905331,88066.0,88054.0,0.01135666]
[1767282328801,0.04905331,88066.0,88053.0,0.01017624]
[1767282329009,0.04905331,88066.0,88054.0,0.01135666]
[1767282329668,0.04905331,88066.0,88055.0,0.01135653]
[1767282329805,0.04905331,88066.0,88057.0,0.01135628]
[1767282330012,0.04905331,88066.0,88056.0,0.0113564]
[1767282330297,0.04905331,88066.0,88055.0,0.01135653]
[1767282332167,0.04905331,88066.0,88054.0,0.01135666]
[1767282332940,0.04905331,88066.0,88055.0,0.01135653]
[1767282333354,0.04905331,88066.0,88054.0,0.01135666]
[1767282333955,0.04905331,88066.0,88055.0,0.01135653]
[1767282334175,0.04905331,88066.0,88054.0,0.01135666]
[1767282334786,0.04905331,88066.0,88055.0,0.05678269]
[1767282335588,0.04905331,88066.0,88056.0,0.0113564]
[1767282335812,0.04905331,88066.0,88057.0,0.01135628]
[1767282336582,0.04905331,88066.0,88058.0,0.01135615]
[1767282336790,0.04905331,88066.0,88059.0,0.06813613]
[1767282336991,0.04905331,88066.0,88060.0,0.01135589]
[1767282337194,0.04905331,88066.0,88059.0,0.01135602]
[1767282337513,0.04905331,88066.0,88060.0,0.01135589]
[1767282338375,0.04905331,88066.0,88061.0,0.01135576]
[1767282338794,0.04905331,88066.0,88063.0,0.0113555]
[1767282338996,0.04905331,88066.0,88062.0,0.01135563]
[1767282339205,0.04905331,88066.0,88063.0,0.0113555]
[1767282339609,0.04905331,88066.0,88062.0,0.01135563]
[1767282339765,0.04905331,88066.0,88060.0,0.01135589]
[1767282339975,0.04905331,88066.0,88059.0,0.01135602]
[1767282340456,0.04905331,88066.0,88058.0,0.01135615]
[1767282341745,0.04905331,88066.0,88057.0,0.01135628]
[1767282342151,0.04905331,88066.0,88054.0,0.06813947]
[1767282342326,0.04905331,88066.0,88056.0,0.0113564]
[1767282342897,0.04905331,88066.0,88057.0,0.01135628]
[1767282343114,0.04905331,88066.0,88056.0,0.0113564]
[1767282343710,0.04905331,88066.0,88057.0,0.01135628]
[1767282344251,0.04905331,88066.0,88056.0,0.0113564]
[1767282344637,0.04905331,88066.0,88057.0,0.01135628]
[1767282345054,0.04905331,88066.0,88058.0,0.01135615]
[1767282345262,0.04905331,88066.0,88057.0,0.01135628]
[1767282346587,0.04905331,88066.0,88058.0,0.01135615]
[1767282348223,0.04905331,88066.0,88057.0,0.01135628]
[1767282348478,0.04905331,88066.0,88056.0,0.0113564]
[1767282348845,0.04905331,88066.0,88057.0,0.01135628]
[1767282349009,0.04905331,88066.0,88057.0,0.01131373]
[1767282349745,0.04905331,88066.0,88058.0,0.01135615]
[1767282349965,0.04905331,88066.0,88057.0,0.01131373]
[1767282350166,0.000549,88058.0,88053.0,0.01135679]
[1767282350326,0.04905331,88066.0,88053.0,0.01135679]
[1767282350668,0.04905331,88066.0,88054.0,0.01135666]
[1767282350872,0.04905331,88066.0,88056.0,0.0113564]
[1767282351065,0.04905331,88066.0,88054.0,0.01135666]
[1767282351267,0.04905331,88066.0,88055.0,0.01135653]
[1767282351469,0.04905331,88066.0,88056.0,0.0113564]
[1767282351673,0.04905331,88066.0,88055.0,0.01135653]
[1767282351824,0.04905331,88066.0,88056.0,0.0113564]
[1767282353239,0.04905331,88066.0,88055.0,0.01135653]
[1767282353466,0.04905331,88066.0,88056.0,0.0113564]
[1767282354482,0.04905331,88066.0,88055.0,0.01135653]
[1767282355411,0.04905331,88066.0,88056.0,0.0113564]
[1767282356170,0.04905331,88066.0,88057.0,0.01135628]
[1767282356690,0.04905331,88066.0,88055.0,0.01135653]
[1767282358030,0.04905331,88066.0,88056.0,0.0113564]
[1767282358670,0.04905331,88066.0,88057.0,0.01135628]
[1767282358874,0.04905331,88066.0,88056.0,0.0113564]
[1767282359479,0.04905331,88066.0,88057.0,0.01135628]
[1767282359677,0.04905331,88066.0,88056.0,0.0113564]
[1767282360626,0.04905331,88066.0,88057.0,0.01135628]
[1767282361201,0.04905331,88066.0,88057.0,0.06813705]
[1767282361377,0.04905331,88066.0,88059.0,0.01135602]
[1767282361562,0.04905331,88066.0,88058.0,0.01135615]
[1767282361767,0.04905331,88066.0,88059.0,0.01135602]
[1767282362212,0.04905331,88066.0,88058.0,0.01135615]
[1767282362986,0.04905331,88066.0,88059.0,0.01135602]
[1767282363199,0.04905331,88066.0,88058.0,0.01135615]
[1767282363605,0.04905331,88066.0,88059.0,0.01135602]
[1767282363806,0.04905331,88066.0,88063.0,0.0113555]
[1767282364212,0.00308463,88066.0,88063.0,0.06813239]
[1767282364440,0.00308463,88066.0,88063.0,0.0113555]
[1767282364621,0.052363,88066.0,88063.0,0.0113555]
[1767282365172,0.052363,88066.0,88062.0,0.01135563]
[1767282365616,0.052363,88066.0,88061.0,0.01135576]
[1767282366331,0.052363,88066.0,88062.0,0.01135563]
[1767282366581,0.052363,88066.0,88063.0,0.0113555]
[1767282366914,0.052363,88066.0,88063.0,0.06813301]
[1767282367115,0.052363,88066.0,88063.0,0.0113555]
[1767282367433,1e-08,88066.0,88063.0,0.0113555]
[1767282368334,1e-08,88066.0,88059.0,0.01135602]
[1767282368335,0.000549,88063.0,88059.0,0.01135602]
[1767282368542,1e-08,88066.0,88060.0,0.01135589]
[1767282369107,1e-08,88066.0,88061.0,0.01135576]
[1767282369336,0.00053638,88079.0,88065.0,0.01135524]
[1767282369540,0.02205947,88078.0,88070.0,0.0113546]
[1767282369710,0.03595877,88077.0,88074.0,0.01135408]
[1767282369910,0.01144401,88077.0,88074.0,0.01135408]
[1767282370129,0.01144401,88077.0,88073.0,0.01135421]
[1767282370418,4.401e-05,88077.0,88074.0,0.06812436]
[1767282371394,4.401e-05,88077.0,88074.0,0.01135408]
[1767282372185,4.401e-05,88077.0,88074.0,0.06812451]
[1767282372405,0.04891937,88085.0,88080.0,0.01135331]
[1767282372610,0.02418076,88084.0,88081.0,0.01135318]
[1767282372816,0.0001468,88086.0,88083.0,0.01135292]
[1767282373063,0.0001468,88086.0,88082.0,0.01135305]
[1767282373251,0.0001468,88086.0,88083.0,0.01135292]
[1767282373458,0.0001468,88086.0,88082.0,0.01135305]
[1767282373661,0.0001468,88086.0,88083.0,0.06811731]
[1767282373872,0.0001468,88086.0,88082.0,0.01135305]
[1767282374078,0.0001468,88086.0,88083.0,0.01135292]
[1767282374284,0.0001468,88086.0,88082.0,0.01135305]
[1767282374708,0.0001468,88086.0,88083.0,0.06811756]
[1767282374987,0.0001468,88086.0,88084.0,0.05676336]
[1767282375746,0.04947837,88092.0,88084.0,0.05676336]
[1767282375747,0.0002,88092.0,88086.0,0.06811478]
[1767282375951,0.0002,88092.0,88087.0,0.06811387]
[1767282376150,0.0116,88092.0,88089.0,0.06811271]
[1767282376346,0.0002,88092.0,88091.0,0.05675948]
[1767282376564,1e-08,88092.0,88091.0,0.05675948]
[1767282383914,1e-08,88092.0,88091.0,0.05621048]
[1767282384499,1e-08,88095.0,88093.0,0.05675783]
[1767282385880,0.00011722,88104.0,88101.0,0.06810314]
[1767282386262,0.00011722,88104.0,88101.0,0.0113506]
[1767282387019,7.599e-05,88104.0,88101.0,0.0113506]
[1767282387222,0.00055,88101.0,88099.0,0.01136]
[1767282387427,0.00055,88101.0,88100.0,0.05675368]
[1767282387562,0.00055,88101.0,88099.0,0.01136]
[1767282387761,7.599e-05,88104.0,88101.0,0.0113506]
[1767282388085,7.599e-05,88104.0,88099.0,0.02271086]
[1767282388459,0.00055,88099.0,88095.0,0.01135138]
[1767282388919,0.04714167,88103.0,88094.0,0.01135151]
[1767282389328,0.04714167,88103.0,88093.0,0.02271163]
[1767282389623,0.00055,88094.0,88093.0,0.01136]
[1767282390041,0.04714167,88099.0,88093.0,0.01136]
[1767282390445,0.04714167,88099.0,88085.0,0.01136]
[1767282390647,0.04769167,88093.0,88085.0,0.01136]
[1767282391072,0.04714167,88093.0,88085.0,0.01136]
[1767282391277,0.04714167,88093.0,88080.0,0.00010575]
[1767282391278,0.04714167,88093.0,88081.0,0.02271318]
[1767282391482,0.04714167,88093.0,88082.0,0.01135305]
[1767282391642,0.04714167,88093.0,88081.0,0.02271318]
[1767282391818,0.04714167,88093.0,88081.0,0.01136]
[1767282392227,0.04714167,88093.0,88081.0,0.01081]
[1767282392422,0.04714167,88090.0,88082.0,0.01135305]
[1767282392939,0.04714167,88090.0,88083.0,0.01135292]
[1767282393122,0.04714167,88090.0,88082.0,0.01135305]
[1767282393336,0.04709934,88090.0,88083.0,0.01135292]
[1767282393966,0.0470565,88090.0,88082.0,0.01135305]
[1767282394209,0.0470565,88090.0,88081.0,0.01135318]
[1767282394367,0.0470565,88090.0,88084.0,0.01135279]
[1767282394544,0.0470565,88090.0,88083.0,0.06811694]
[1767282394748,0.04701483,88090.0,88084.0,0.01135279]
[1767282394953,0.04701483,88090.0,88085.0,0.01135267]
[1767282395152,0.0002,88091.0,88085.0,0.01135267]
[1767282395331,0.00015848,88091.0,88086.0,0.01135254]
[1767282395531,0.00015848,88091.0,88088.0,0.01135228]
[1767282395862,4.8e-07,88091.0,88084.0,0.01135279]
[1767282396067,4.8e-07,88091.0,88080.0,0.09116207]
[1767282396068,0.04714167,88090.0,88081.0,0.01135318]
[1767282396231,0.04714167,88090.0,88080.0,0.00018926]
[1767282396436,0.04729967,88081.0,88080.0,0.00018926]
[1767282396629,0.000158,88081.0,88080.0,0.00018926]
[1767282396834,0.04714167,88086.0,88080.0,0.00018926]
[1767282397477,4.8e-07,88091.0,88082.0,0.01135305]
[1767282398574,0.04710002,88093.0,88083.0,0.01135292]
[1767282398782,0.01136,88090.0,88083.0,0.01135292]
[1767282399163,0.01136,88090.0,88082.0,0.01135305]
[1767282399399,0.01136,88090.0,88083.0,0.01135292]
[1767282399957,0.01136,88090.0,88084.0,0.01135279]
[1767282400160,0.01136,88090.0,88082.0,0.01135305]
[1767282400361,0.01136,88090.0,88083.0,0.01135292]
[1767282400815,0.01136,88090.0,88082.0,0.01135305]
[1767282401046,0.01136,88090.0,88081.0,0.01135318]
[1767282401323,0.01136,88090.0,88082.0,0.01135305]
[1767282401539,0.04710002,88093.0,88087.0,0.01135241]
[1767282401841,0.01136,88092.0,88087.0,0.01135241]
[1767282402169,0.0002,88107.0,88092.0,0.01174276]
[1767282402371,0.04714167,88105.0,88092.0,0.000391]
[1767282402674,0.04714167,88103.0,88092.0,0.01135176]
[1767282402870,0.03515494,88102.0,88095.0,0.01135138]
[1767282403069,0.04714167,88103.0,88095.0,0.01135138]
[1767282403070,0.03587497,88101.0,88096.0,0.01135125]
[1767282403272,0.05850167,88103.0,88101.0,0.000941]
[1767282403494,0.0002,88107.0,88101.0,0.0122916]
[1767282403700,0.0002,88107.0,88102.0,0.01135048]
[1767282404124,0.0002,88107.0,88103.0,0.01135035]
[1767282404353,0.01156,88107.0,88102.0,0.01135048]
[1767282404559,0.00023549,88114.0,88102.0,0.01135048]
[1767282404560,0.01136,88108.0,88102.0,0.01135048]
[1767282404921,0.01136,88108.0,88101.0,0.0113506]
[1767282405123,0.00023549,88114.0,88108.0,0.000191]
[1767282405328,0.01136,88113.0,88107.0,0.01134983]
[1767282405530,0.01136,88113.0,88104.0,0.01135022]
[1767282405740,0.04733355,88114.0,88111.0,0.01134932]
[1767282405933,0.04733355,88114.0,88107.0,0.01134983]
[1767282406150,0.01136,88113.0,88104.0,0.01135022]
[1767282406355,0.01136,88113.0,88106.0,0.01134996]
[1767282406736,0.011169,88113.0,88110.0,0.01134944]
[1767282406941,0.011169,88113.0,88109.0,0.06809742]
[1767282407155,0.00019188,88114.0,88109.0,0.01134957]
[1767282407354,0.00019188,88114.0,88110.0,0.01134944]
[1767282407559,0.00019188,88114.0,88107.0,0.01134983]
[1767282407759,0.00019188,88114.0,88109.0,0.01134957]
[1767282408247,0.000549,88109.0,88100.0,0.02271073]
[1767282408467,0.000549,88109.0,88102.0,0.01135048]
[1767282408740,0.04714167,88109.0,88100.0,0.02271073]
[1767282408911,0.04714167,88109.0,88100.0,0.01136]
[1767282409541,0.04714167,88109.0,88091.0,0.03424849]
[1767282409542,0.04714167,88109.0,88096.0,0.01136]
[1767282410145,0.04714167,88109.0,88096.0,0.02271125]
[1767282410345,0.04714167,88109.0,88098.0,0.01135099]
[1767282410546,0.04714167,88109.0,88096.0,0.02271125]
[1767282410721,0.04714167,88109.0,88097.0,0.01135112]
[1767282411045,0.04714167,88109.0,88098.0,0.01135099]
[1767282411422,0.04714167,88109.0,88096.0,0.01136]
[1767282412162,0.05849124,88109.0,88087.0,0.01135241]
[1767282412326,0.04714167,88107.0,88096.0,0.01135125]
[1767282412748,0.04714167,88107.0,88098.0,0.01135099]
[1767282413183,0.04714167,88107.0,88099.0,0.01135086]
[1767282413383,0.04714167,88107.0,88098.0,0.01135099]
[1767282413587,0.04714167,88107.0,88095.0,0.01135138]
[1767282413732,0.04714167,88107.0,88096.0,0.01135125]
[1767282413931,0.04714167,88107.0,88095.0,0.01135138]
[1767282414533,0.04714167,88107.0,88099.0,0.01135086]
[1767282414738,0.04714167,88107.0,88097.0,0.01135112]
[1767282414939,0.04714167,88107.0,88099.0,0.01135086]
[1767282415345,0.04710041,88107.0,88099.0,0.01135086]
[1767282415884,0.04710041,88107.0,88098.0,0.01135099]
[1767282417109,0.04710041,88107.0,88099.0,0.01135086]
[1767282417661,0.04710041,88107.0,88098.0,0.01135099]
[1767282417863,0.04715246,88107.0,88098.0,0.01135099]
[1767282418069,0.04715246,88107.0,88099.0,0.01135086]
[1767282418365,0.00019188,88114.0,88107.0,0.00049695]
[1767282418772,0.01136,88113.0,88109.0,0.01134957]
[1767282418985,0.01136,88113.0,88108.0,0.0113497]
[1767282419294,0.00019188,88114.0,88110.0,0.01134944]
[1767282419494,0.00019188,88114.0,88109.0,0.01134957]
[1767282419736,8.8e-07,88114.0,88111.0,0.01134932]